bitfinex/quotes_BTCUSD_20250802
["timestamp","ask_amount","ask_price","bid_price","bid_amount"]
[1754119879129,7.53822332,114130.0,114120.0,0.48971196]
[1754119879327,7.53822332,114130.0,114120.0,0.48092918]
[1754119879686,7.17816943,114130.0,114120.0,0.4721464]
[1754119880098,7.17816943,114130.0,114120.0,0.46336362]
[1754119880302,7.53822332,114130.0,114120.0,0.46336362]
[1754119880501,7.53822332,114130.0,114120.0,0.45458084]
[1754119880912,7.53822332,114130.0,114120.0,0.44579806]
[1754119881410,7.17816943,114130.0,114120.0,0.4370143]
[1754119881604,7.53822332,114130.0,114120.0,0.42823054]
[1754119882008,7.53822332,114130.0,114120.0,0.41944678]
[1754119882422,7.56322332,114130.0,114120.0,0.37991985]
[1754119882855,7.56322332,114130.0,114120.0,0.37113609]
[1754119883084,7.56322332,114130.0,114120.0,0.34039292]
[1754119883287,7.54950551,114130.0,114120.0,0.33160916]
[1754119883718,7.54950551,114130.0,114120.0,0.3228254]
[1754119883925,7.54950551,114130.0,114120.0,0.29208223]
[1754119884123,7.54950551,114130.0,114120.0,0.28329847]
[1754119884465,7.54950551,114130.0,114120.0,0.27451471]
[1754119884895,7.54950551,114130.0,114120.0,0.26573095]
[1754119885061,7.93131434,114130.0,114120.0,0.26573095]
[1754119885270,7.95559434,114130.0,114120.0,0.25694719]
[1754119885705,7.95559434,114130.0,114120.0,0.24816343]
[1754119885886,7.93059434,114130.0,114120.0,0.24816343]
[1754119886090,7.93059434,114130.0,114120.0,0.23937967]
[1754119886292,7.97206472,114130.0,114120.0,0.23937967]
[1754119886526,8.02478472,114130.0,114120.0,0.23059591]
[1754119886903,8.02478472,114130.0,114120.0,0.22181215]
[1754119887283,8.02478472,114130.0,114120.0,0.21302839]
[1754119887489,8.03850372,114130.0,114120.0,0.21302839]
[1754119887692,8.03850372,114130.0,114120.0,0.20424417]
[1754119888114,8.03850372,114130.0,114120.0,0.19545995]
[1754119888338,8.04700372,114130.0,114120.0,0.19545995]
[1754119888548,8.04700372,114130.0,114120.0,0.18667573]
[1754119888963,8.04700372,114130.0,114120.0,0.17789151]
[1754119889398,8.04700372,114130.0,114120.0,0.16910729]
[1754119889821,8.04700372,114130.0,114120.0,0.16032307]
[1754119890311,8.04700372,114130.0,114120.0,0.15153885]
[1754119890527,8.04700372,114130.0,114120.0,0.14275463]
[1754119890948,8.04700372,114130.0,114120.0,0.13397041]
[1754119891418,8.04700372,114130.0,114120.0,0.12518619]
[1754119891891,8.04700372,114130.0,114120.0,0.11640197]
[1754119892149,8.06592047,114130.0,114120.0,0.10761775]
[1754119892607,8.06592047,114130.0,114120.0,0.09883353]
[1754119893046,8.06592047,114130.0,114120.0,0.09004931]
[1754119893267,8.06592047,114130.0,114120.0,0.08126482]
[1754119893485,8.05220147,114130.0,114120.0,0.08126482]
[1754119893713,8.05220147,114130.0,114120.0,0.07248033]
[1754119894266,8.05220147,114130.0,114120.0,0.02864672]
[1754119894267,9.17061217,114130.0,114120.0,0.02864672]
[1754119894480,8.1828705,114130.0,114120.0,0.02864672]
[1754119894701,6.90554627,114110.0,114100.0,0.02981]
[1754119894923,7.20846605,114110.0,114100.0,0.02985789]
[1754119895153,7.56851994,114110.0,114100.0,0.02985789]
[1754119896232,6.87218676,114110.0,114100.0,0.02985789]
[1754119896530,7.17952065,114110.0,114100.0,0.02687789]
[1754119896993,7.20452065,114110.0,114100.0,0.02687789]
[1754119897434,7.20552065,114110.0,114100.0,0.00104789]
[1754119898088,6.6454465,114100.0,114090.0,0.02510619]
[1754119898313,6.94836628,114100.0,114090.0,0.02510619]
[1754119898567,6.95044628,114100.0,114090.0,0.02510619]
[1754119899032,6.86624639,114100.0,114090.0,0.02510619]
[1754119899245,5.56533093,114070.0,114060.0,0.07004334]
[1754119899469,6.05990482,114070.0,114060.0,0.07219334]
[1754119899960,6.07362775,114070.0,114060.0,0.07219334]
[1754119900196,6.07362775,114070.0,114060.0,0.10200334]
[1754119900453,6.09998775,114070.0,114060.0,0.10200334]
[1754119900693,6.12580261,114070.0,114060.0,0.03396]
[1754119900942,5.76574872,114070.0,114060.0,0.03396]
[1754119901147,6.12580261,114070.0,114060.0,0.03196]
[1754119901658,5.76574872,114070.0,114060.0,0.03196]
[1754119901867,6.12580261,114070.0,114060.0,0.03296]
[1754119903418,6.11207968,114070.0,114060.0,0.03296]
[1754119904759,5.75202579,114070.0,114060.0,0.03296]
[1754119904980,6.11207968,114070.0,114060.0,0.03296]
[1754119906300,5.75202579,114070.0,114060.0,0.03296]
[1754119906550,5.44217486,114070.0,114060.0,0.75306778]
[1754119906803,5.44217486,114070.0,114060.0,0.83726767]
[1754119906804,0.52677486,114070.0,114060.0,0.83726767]
[1754119907071,0.50041486,114070.0,114060.0,0.11715989]
[1754119907309,0.50041486,114070.0,114060.0,0.47752143]
[1754119907751,0.5141368,114070.0,114060.0,0.11715989]
[1754119908189,0.5141368,114070.0,114060.0,0.47752143]
[1754119908614,0.3795368,114070.0,114060.0,0.47752143]
[1754119908834,0.5142568,114070.0,114060.0,0.47752143]
[1754119909968,0.5142568,114070.0,114060.0,0.11715989]
[1754119910187,0.5142568,114070.0,114060.0,0.47752143]
[1754119910414,0.5142568,114070.0,114060.0,0.11715989]
[1754119910640,0.5142568,114070.0,114060.0,0.47752143]
[1754119910870,0.5142568,114070.0,114060.0,0.11715989]
[1754119911092,0.5142568,114070.0,114060.0,0.47752143]
[1754119911313,0.5142568,114070.0,114060.0,0.11715989]
[1754119911528,0.5142568,114070.0,114060.0,0.47752143]
[1754119912885,0.5142568,114070.0,114060.0,0.11715989]
[1754119915019,0.5406148,114070.0,114060.0,0.11715989]
[1754119915231,0.5142568,114070.0,114060.0,0.11715989]
[1754119916114,0.5142568,114070.0,114060.0,0.47752143]
[1754119916340,0.5142568,114070.0,114060.0,0.11715989]
[1754119916543,0.5142568,114070.0,114060.0,0.47752143]
[1754119917194,0.3795368,114070.0,114060.0,0.47752143]
[1754119917454,0.5144968,114070.0,114060.0,0.11715989]
[1754119917787,0.5144968,114070.0,114060.0,0.47752143]
[1754119918220,0.5144968,114070.0,114060.0,0.11715989]
[1754119918422,0.3795368,114070.0,114060.0,0.11715989]
[1754119918646,0.5144568,114070.0,114060.0,0.11715989]
[1754119921250,0.50073486,114070.0,114060.0,0.11715989]
[1754119924136,0.51445697,114070.0,114060.0,0.11715989]
[1754119925296,0.50073486,114070.0,114060.0,0.11715989]
[1754119928169,0.51445697,114070.0,114060.0,0.11715989]
[1754119932915,0.51445697,114070.0,114060.0,0.47761273]
[1754119935076,0.51445697,114070.0,114060.0,0.11715989]
[1754119935317,0.51445697,114070.0,114060.0,0.47761273]
[1754119942773,0.37953697,114070.0,114060.0,0.47761273]
[1754119942994,0.51429697,114070.0,114060.0,0.83806557]
[1754119944205,0.51429697,114070.0,114060.0,0.11715989]
[1754119944407,0.51429697,114070.0,114060.0,0.47980455]
[1754119944623,0.51429697,114070.0,114060.0,0.47761273]
[1754119945263,0.51429697,114070.0,114060.0,0.83806557]
[1754119947365,0.51429697,114070.0,114060.0,0.11715989]
[1754119947513,0.51429697,114070.0,114060.0,0.84025739]
[1754119947802,0.51429697,114070.0,114060.0,0.83806557]
[1754119949427,0.51429697,114070.0,114060.0,0.47761273]
[1754119950108,0.37953697,114070.0,114060.0,0.83806557]
[1754119950535,0.36581486,114070.0,114060.0,0.83806557]
[1754119952386,0.36581486,114070.0,114060.0,0.11715989]
[1754119952587,0.36581486,114070.0,114060.0,0.11935171]
[1754119952874,0.36581486,114070.0,114060.0,0.84025739]
[1754119953004,0.36581486,114070.0,114060.0,0.83806557]
[1754119953547,0.37953637,114070.0,114060.0,1.19851841]
[1754119953753,0.01372151,114070.0,114060.0,1.19851841]
[1754119953961,0.34,114080.0,114060.0,1.19851841]
[1754119954161,0.36589397,114080.0,114070.0,0.9740372]
[1754119954372,0.34,114080.0,114070.0,0.97386557]
[1754119954591,5.05,114080.0,114070.0,0.97386557]
[1754119954790,0.13636,114090.0,114070.0,0.61316142]
[1754119954991,0.13636,114090.0,114080.0,0.39058153]
[1754119954992,5.39,114090.0,114080.0,0.39058153]
[1754119955247,5.05,114090.0,114080.0,0.47680142]
[1754119955458,0.13636,114090.0,114080.0,0.47680142]
[1754119955798,0.13636,114100.0,114080.0,0.47680142]
[1754119956000,5.05,114100.0,114090.0,0.61110142]
[1754119956202,5.05198,114100.0,114090.0,0.47680142]
[1754119956805,0.16573776,114110.0,114090.0,0.47680142]
[1754119957009,5.05,114100.0,114090.0,0.44950142]
[1754119957204,5.0762744,114100.0,114090.0,0.44950142]
[1754119957428,0.0262744,114100.0,114090.0,0.44950142]
[1754119957644,0.16279776,114110.0,114090.0,0.47680142]
[1754119957833,5.05,114100.0,114090.0,0.47680142]
[1754119958010,5.05,114100.0,114090.0,0.44950142]
[1754119958627,5.05,114100.0,114090.0,0.47680142]
[1754119960457,0.34,114100.0,114090.0,0.47680142]
[1754119960657,0.4762,114100.0,114090.0,0.47680142]
[1754119960877,0.4762,114100.0,114090.0,0.11659989]
[1754119961139,0.4762,114100.0,114090.0,0.83700295]
[1754119961140,0.34,114100.0,114090.0,0.83700295]
[1754119961859,0.34,114100.0,114090.0,0.47680142]
[1754119962318,0.34,114100.0,114090.0,0.47780142]
[1754119962537,0.34,114100.0,114090.0,0.11759989]
[1754119963049,0.34,114100.0,114090.0,0.47780142]
[1754119963265,0.34,114100.0,114090.0,0.47980142]
[1754119963491,0.34,114100.0,114090.0,0.47880142]
[1754119963715,0.34,114100.0,114090.0,0.11859989]
[1754119963938,0.34,114100.0,114090.0,0.48280142]
[1754119966599,0.35371825,114100.0,114090.0,0.48280142]
[1754119968473,0.35371825,114100.0,114090.0,0.84300295]
[1754119968695,0.35371825,114100.0,114090.0,0.48280142]
[1754119968925,0.35371825,114100.0,114090.0,0.12259989]
[1754119969138,0.35371825,114100.0,114090.0,0.48499267]
[1754119969354,0.35371825,114100.0,114090.0,0.48280142]
[1754119970754,0.35371825,114100.0,114090.0,0.12259989]
[1754119970993,0.35371825,114100.0,114090.0,0.48499267]
[1754119971195,0.35371825,114100.0,114090.0,0.48280142]
[1754119974089,0.35371825,114100.0,114090.0,0.12259989]
[1754119974378,0.35371825,114100.0,114090.0,0.48499267]
[1754119974589,0.35371825,114100.0,114090.0,0.48280142]
[1754119975123,0.01371825,114100.0,114090.0,0.48280142]
[1754119975333,0.01371825,114100.0,114090.0,0.84300295]
[1754119975563,0.00012576,114110.0,114090.0,0.84300295]
[1754119975768,0.00012576,114110.0,114100.0,0.22451095]
[1754119975970,0.00012576,114110.0,114100.0,0.25431989]
[1754119976176,0.00012576,114110.0,114100.0,0.61452142]
[1754119977256,0.00012576,114110.0,114100.0,0.61652142]
[1754119977480,0.00012576,114110.0,114100.0,0.61452142]
[1754119977935,0.00012576,114110.0,114100.0,0.61952142]
[1754119978304,0.00012576,114110.0,114100.0,0.25931989]
[1754119979168,0.00012576,114110.0,114100.0,0.61952142]
[1754119979396,0.00012576,114110.0,114100.0,0.25931989]
[1754119980003,0.00012576,114110.0,114100.0,0.61952142]
[1754119980211,0.00210576,114110.0,114100.0,0.25915989]
[1754119980415,0.00210576,114110.0,114100.0,0.61936142]
[1754119980845,0.00210576,114110.0,114100.0,0.62236142]
[1754119981060,0.00012576,114110.0,114100.0,0.62236142]
[1754119981927,0.00012576,114110.0,114100.0,0.26215989]
[1754119982107,0.00012576,114110.0,114100.0,0.62236142]
[1754119982353,0.00210576,114110.0,114100.0,0.62236142]
[1754119983196,0.00012576,114110.0,114100.0,0.62236142]
[1754119983386,0.00012576,114110.0,114100.0,0.26215989]
[1754119983537,0.00012576,114110.0,114100.0,0.62236142]
[1754119985004,0.00012576,114110.0,114100.0,0.26215989]
[1754119985230,0.00012576,114110.0,114100.0,0.62240142]
[1754119986562,0.01384118,114110.0,114100.0,0.62240142]
[1754119988081,0.01384118,114110.0,114100.0,0.26219989]
[1754119988317,0.01384118,114110.0,114100.0,0.62240142]
[1754119988984,0.01384118,114110.0,114100.0,0.26219989]
[1754119989197,0.01384118,114110.0,114100.0,0.62240142]
[1754119991058,0.01384118,114110.0,114100.0,0.26219989]
[1754119991281,0.01384118,114110.0,114100.0,0.62240142]
[1754119991979,0.01384118,114110.0,114100.0,0.26219989]
[1754119992474,0.01384118,114110.0,114100.0,0.62240142]
[1754119992901,0.01384118,114110.0,114100.0,0.26219989]
[1754119993129,0.01384118,114110.0,114100.0,0.62240142]
[1754119993377,0.01384118,114110.0,114100.0,0.26219989]
[1754119993679,0.01384118,114110.0,114100.0,0.62240142]
[1754119994810,0.01384118,114110.0,114100.0,0.26219989]
[1754119995268,0.01384118,114110.0,114100.0,0.62240142]
[1754119995972,0.01384118,114110.0,114100.0,0.26219989]
[1754119996201,0.01384118,114110.0,114100.0,0.62240142]
[1754119997033,0.01384118,114110.0,114100.0,0.26219989]
[1754119997254,0.01384118,114110.0,114100.0,0.62240142]
[1754119998092,0.01384118,114110.0,114100.0,0.26219989]
[1754119998311,0.01384118,114110.0,114100.0,0.62240142]
[1754119999594,0.01384118,114110.0,114100.0,0.26219989]
[1754119999806,0.01384118,114110.0,114100.0,0.62240142]
[1754120000480,0.01384118,114110.0,114100.0,0.26219989]
[1754120000694,0.01384118,114110.0,114100.0,0.62240142]
[1754120000915,0.01384118,114110.0,114100.0,0.48444142]
[1754120001191,0.01582118,114110.0,114100.0,0.62220142]
[1754120002517,0.01384118,114110.0,114100.0,0.62220142]
[1754120002727,0.01384118,114110.0,114100.0,0.26199989]
[1754120002934,0.01384118,114110.0,114100.0,0.62220142]
[1754120004020,0.01384118,114110.0,114100.0,0.26199989]
[1754120004360,0.01384118,114110.0,114100.0,0.62220142]
[1754120005485,5.05,114120.0,114100.0,0.26199989]
[1754120005716,0.01371582,114120.0,114100.0,0.59527142]
[1754120005926,5.05,114120.0,114110.0,0.02962086]
[1754120006132,5.05198,114120.0,114110.0,0.11162989]
[1754120006360,0.00198,114120.0,114110.0,0.11162989]
[1754120006573,0.00198,114120.0,114110.0,0.11382075]
[1754120006783,0.00198,114120.0,114110.0,0.11676075]
[1754120006989,0.00198,114120.0,114110.0,0.11878075]
[1754120007756,0.00198,114120.0,114110.0,0.48098228]
[1754120008007,0.00198,114120.0,114110.0,0.47879142]
[1754120009020,0.00139941,114120.0,114110.0,0.47879142]
[1754120009214,0.00139941,114120.0,114110.0,0.11858989]
[1754120009451,0.00139941,114120.0,114110.0,0.48098228]
[1754120009697,0.00139941,114120.0,114110.0,0.48079142]
[1754120009926,0.01371512,114120.0,114110.0,0.48079142]
[1754120011289,0.01371512,114120.0,114110.0,0.61883142]
[1754120012694,0.01371512,114120.0,114110.0,0.25862989]
[1754120012909,0.01371512,114120.0,114110.0,0.61883142]
[1754120013375,5.05,114120.0,114110.0,0.61883142]
[1754120013881,5.05,114120.0,114110.0,0.25862989]
[1754120014390,5.05,114120.0,114110.0,0.61883142]
[1754120015131,5.05,114120.0,114110.0,0.25862989]
[1754120015621,5.05,114120.0,114110.0,0.61883142]
[1754120017056,0.34,114130.0,114110.0,0.25862989]
[1754120017283,0.34004785,114130.0,114120.0,0.08419989]
[1754120017502,0.34144785,114130.0,114120.0,0.11162989]
[1754120017825,0.35516262,114130.0,114120.0,0.11162989]
[1754120018927,0.35516262,114130.0,114120.0,0.11262989]
[1754120019378,0.35516262,114130.0,114120.0,0.11362989]
[1754120020495,0.35516262,114130.0,114120.0,0.25146989]
[1754120021957,0.71520913,114130.0,114120.0,0.25146989]
[1754120022796,0.71520913,114130.0,114120.0,0.002]
[1754120022797,6.12760564,114130.0,114120.0,0.002]
[1754120023477,6.11389087,114130.0,114120.0,0.002]
[1754120023697,6.14023887,114130.0,114120.0,0.002]
[1754120025043,5.78037226,114130.0,114120.0,0.002]
[1754120025508,5.42014585,114130.0,114120.0,0.002]
[1754120025754,5.97306004,114130.0,114120.0,0.002]
[1754120026443,5.62655035,114130.0,114120.0,0.002]
[1754120026657,5.98677676,114130.0,114120.0,0.002]
[1754120026881,5.98677676,114130.0,114120.0,0.001]
[1754120027331,5.05,114120.0,114100.0,0.16543]
[1754120027563,5.05198,114110.0,114100.0,0.02747]
[1754120027790,0.00198,114110.0,114100.0,0.03041]
[1754120028250,0.01569681,114110.0,114100.0,0.03041]
[1754120028478,5.94355269,114110.0,114100.0,4e-05]
[1754120028708,5.94355269,114110.0,114100.0,0.00104]
[1754120029393,5.94355269,114110.0,114100.0,4e-05]
[1754120029617,5.79463522,114110.0,114100.0,4e-05]
[1754120029901,5.79463522,114110.0,114100.0,0.00104]
[1754120030609,6.2215536,114110.0,114100.0,4e-05]
[1754120031312,6.2215536,114110.0,114100.0,0.00204]
[1754120031744,6.2215536,114110.0,114100.0,4e-05]
[1754120032223,6.2225536,114110.0,114100.0,4e-05]
[1754120032732,6.2235536,114110.0,114100.0,4e-05]
[1754120032958,6.08584743,114110.0,114100.0,0.02747]
[1754120033444,6.08819743,114110.0,114100.0,4e-05]
[1754120034552,1.03819743,114110.0,114100.0,4e-05]
[1754120034781,6.08819743,114110.0,114100.0,4e-05]
[1754120035000,6.2641869,114110.0,114100.0,4e-05]
[1754120036079,6.27790634,114110.0,114100.0,4e-05]
[1754120038041,6.36210623,114110.0,114100.0,4e-05]
[1754120043365,6.34838679,114110.0,114100.0,4e-05]
[1754120044230,6.34766679,114110.0,114100.0,4e-05]
[1754120044453,6.19766679,114110.0,114100.0,4e-05]
[1754120044683,6.34531679,114110.0,114100.0,0.02703]
[1754120045329,6.34531679,114110.0,114100.0,0.03253]
[1754120046390,6.35903586,114110.0,114100.0,0.00554]
[1754120046598,6.36211586,114110.0,114100.0,0.00554]
[1754120048546,6.79485242,114110.0,114100.0,0.00554]
[1754120050792,6.41483586,114110.0,114100.0,0.00554]
[1754120051041,7.00006227,114110.0,114100.0,0.00554]
[1754120051909,6.99806227,114110.0,114100.0,0.00554]
[1754120052347,7.00306227,114110.0,114100.0,0.00554]
[1754120052560,7.01897302,114110.0,114100.0,0.00554]
[1754120052771,7.01697302,114110.0,114100.0,0.00554]
[1754120052984,7.00725395,114110.0,114100.0,0.00554]
[1754120053618,7.47865395,114110.0,114100.0,0.00554]
[1754120054092,5.58276458,114080.0,114070.0,0.09703334]
[1754120054312,5.90503543,114080.0,114070.0,0.07004334]
[1754120054574,5.91430672,114080.0,114070.0,0.07203334]
[1754120054840,5.94066772,114080.0,114070.0,0.09902334]
[1754120055053,5.94066772,114080.0,114070.0,0.10213334]
[1754120055475,5.94071553,114080.0,114070.0,0.10313334]
[1754120055706,5.44312912,114080.0,114070.0,0.10513334]
[1754120055946,5.5943708,114080.0,114070.0,0.10513334]
[1754120056788,5.95459721,114080.0,114070.0,0.03509]
[1754120057884,0.3804898,114080.0,114070.0,0.03509]
[1754120063088,0.5179698,114080.0,114070.0,0.03509]
[1754120064857,0.3804898,114080.0,114070.0,0.03509]
[1754120065061,0.5179698,114080.0,114070.0,0.03509]
[1754120066352,0.50424812,114080.0,114070.0,0.03509]
[1754120066977,0.36676812,114080.0,114070.0,0.03509]
[1754120069317,0.38048921,114080.0,114070.0,0.03509]
[1754120073284,0.36676812,114080.0,114070.0,0.03509]
[1754120073496,0.02676812,114080.0,114070.0,0.03509]
[1754120077651,0.04048921,114080.0,114070.0,0.03509]
[1754120079833,0.38244921,114080.0,114070.0,0.03509]
[1754120087313,0.36872812,114080.0,114070.0,0.03509]
[1754120087760,5.05,114080.0,114070.0,0.03509]
[1754120088961,5.41022641,114080.0,114070.0,0.003]
[1754120089206,5.41086641,114080.0,114070.0,0.003]
[1754120089672,5.75086641,114080.0,114070.0,0.003]
[1754120090346,5.76498824,114080.0,114070.0,0.003]
[1754120090645,0.71498824,114080.0,114070.0,0.003]
[1754120090906,5.76498824,114080.0,114070.0,0.003]
[1754120091153,5.79134724,114080.0,114070.0,0.003]
[1754120092118,5.81792997,114080.0,114070.0,0.003]
[1754120093017,5.80420814,114080.0,114070.0,0.003]
[1754120093237,5.80380814,114080.0,114070.0,0.003]
[1754120094110,5.44358173,114080.0,114070.0,0.003]
[1754120094325,5.80380814,114080.0,114070.0,0.03084]
[1754120094758,5.44358173,114080.0,114070.0,0.03084]
[1754120094970,5.80380814,114080.0,114070.0,0.03084]
[1754120095186,5.94104814,114080.0,114070.0,0.0339]
[1754120096256,5.95476974,114080.0,114070.0,0.0339]
[1754120097741,5.81752974,114080.0,114070.0,0.0339]
[1754120097947,5.95468974,114080.0,114070.0,0.0339]
[1754120098368,5.81752974,114080.0,114070.0,0.0339]
[1754120098575,5.95400974,114080.0,114070.0,0.03587]
[1754120100549,5.95464974,114080.0,114070.0,0.03587]
[1754120100993,5.81752974,114080.0,114070.0,0.03587]
[1754120101211,5.59434333,114080.0,114070.0,0.0339]
[1754120101468,5.95456974,114080.0,114070.0,0.0339]
[1754120102383,5.95456974,114080.0,114070.0,0.03587]
[1754120103281,5.94084814,114080.0,114070.0,0.03587]
[1754120104210,0.39294173,114080.0,114070.0,0.39609641]
[1754120104427,0.36658273,114080.0,114070.0,0.39609641]
[1754120104651,0.36658273,114080.0,114070.0,0.03587]
[1754120106203,0.38030387,114080.0,114070.0,0.03587]
[1754120108263,0.38030387,114080.0,114070.0,0.39609641]
[1754120109331,0.38030387,114080.0,114070.0,0.03587]
[1754120114139,0.04030387,114080.0,114070.0,0.03587]
[1754120115958,0.38030387,114080.0,114070.0,0.03587]
[1754120123366,0.38030387,114080.0,114070.0,0.39624608]
[1754120125436,0.38030387,114080.0,114070.0,0.53308608]
[1754120126233,0.36658273,114080.0,114070.0,0.53308608]
[1754120126465,0.39293873,114080.0,114070.0,0.53308608]
[1754120129203,0.40665968,114080.0,114070.0,0.53308608]
[1754120135963,0.40665968,114080.0,114070.0,0.17271]
[1754120136195,0.40665968,114080.0,114070.0,0.53308608]
[1754120137823,0.39293873,114080.0,114070.0,0.53308608]
[1754120138135,0.39293873,114080.0,114070.0,0.17271]
[1754120138339,0.39293873,114080.0,114070.0,0.53308608]
[1754120138572,0.39293873,114080.0,114070.0,0.17271]
[1754120138814,0.39293873,114080.0,114070.0,0.53308608]
[1754120140633,0.40665966,114080.0,114070.0,0.53308608]
[1754120141076,0.40665966,114080.0,114070.0,0.17271]
[1754120141803,0.40665966,114080.0,114070.0,0.53308608]
[1754120146156,0.04007693,114080.0,114070.0,0.97766205]
[1754120146372,0.38007693,114080.0,114070.0,0.97766205]
[1754120146640,0.13648,114100.0,114070.0,0.97766205]
[1754120146870,0.34,114090.0,114080.0,0.44457597]
[1754120147098,0.34,114090.0,114080.0,0.97368205]
[1754120147303,0.34,114090.0,114080.0,0.97570205]
[1754120147521,0.34,114090.0,114080.0,0.25494989]
[1754120147745,0.34,114090.0,114080.0,0.97570205]
[1754120148608,0.34,114090.0,114080.0,0.97770205]
[1754120149486,0.35371922,114090.0,114080.0,0.97970205]
[1754120150515,0.01371922,114090.0,114080.0,0.97970205]
[1754120154040,0.16291688,114100.0,114080.0,0.97970205]
[1754120154258,0.16291688,114100.0,114090.0,0.36037608]
[1754120154534,0.02707688,114100.0,114090.0,0.39266608]
[1754120155141,0.02707688,114100.0,114090.0,0.39467608]
[1754120155999,0.02707688,114100.0,114090.0,0.39567608]
[1754120156700,0.02643688,114100.0,114090.0,0.39567608]
[1754120156979,0.04015591,114100.0,114090.0,0.0353]
[1754120157210,0.04015591,114100.0,114090.0,0.39567608]
[1754120157439,0.04015591,114100.0,114090.0,0.39667608]
[1754120157876,4.857266,114100.0,114090.0,0.39667608]
[1754120158102,0.01371905,114100.0,114090.0,0.39667608]
[1754120160448,0.01371905,114100.0,114090.0,0.0363]
[1754120160669,0.01371905,114100.0,114090.0,0.39667608]
[1754120161102,0.01435905,114100.0,114090.0,0.39667608]
[1754120161584,0.01435905,114100.0,114090.0,0.0363]
[1754120162920,0.01371905,114100.0,114090.0,0.39667608]
[1754120163351,5.197266,114100.0,114090.0,0.39667608]
[1754120163558,0.34,114100.0,114090.0,0.39667608]
[1754120166557,0.35371917,114100.0,114090.0,0.39667608]
[1754120167421,0.35371917,114100.0,114090.0,0.0363]
[1754120169023,0.71409525,114100.0,114090.0,0.0363]
[1754120169805,0.35371917,114100.0,114090.0,0.39667608]
[1754120172240,0.35371917,114100.0,114090.0,0.0363]
[1754120172475,0.35435917,114100.0,114090.0,0.0363]
[1754120172695,0.71473525,114100.0,114090.0,0.0363]
[1754120173359,0.70101608,114100.0,114090.0,0.0363]
[1754120174750,0.34064,114100.0,114090.0,0.0363]
[1754120176469,0.71473532,114100.0,114090.0,0.0363]
[1754120178956,0.71473532,114100.0,114090.0,0.03634]
[1754120181157,0.35435924,114100.0,114090.0,0.03634]
[1754120181369,0.71473532,114100.0,114090.0,0.03634]
[1754120183094,0.70973532,114100.0,114090.0,0.03634]
[1754120183349,0.69601608,114100.0,114090.0,0.03634]
[1754120183813,0.33564,114100.0,114090.0,0.03634]
[1754120184233,0.69601608,114100.0,114090.0,0.03634]
[1754120184643,0.33564,114100.0,114090.0,0.03634]
[1754120185151,0.33564,114100.0,114090.0,0.39671608]
[1754120187430,0.34935924,114100.0,114090.0,0.39671608]
[1754120188968,0.34871924,114100.0,114090.0,0.39671608]
[1754120190226,0.70909532,114100.0,114090.0,0.03634]
[1754120192498,5.9323274,114100.0,114090.0,0.00204]
[1754120192945,5.9586814,114100.0,114090.0,0.00204]
[1754120193390,5.94456216,114100.0,114090.0,0.00204]
[1754120193613,5.22381,114100.0,114090.0,0.00204]
[1754120194291,5.94456216,114100.0,114090.0,0.00204]
[1754120195614,6.08044216,114100.0,114090.0,0.00204]
[1754120196307,6.09416173,114100.0,114090.0,0.00204]
[1754120196519,5.73378565,114100.0,114090.0,0.00204]
[1754120197179,5.72923565,114100.0,114090.0,0.00204]
[1754120197822,5.36885957,114100.0,114090.0,0.00204]
[1754120198067,5.72923565,114100.0,114090.0,0.03081]
[1754120201490,0.87196965,114100.0,114090.0,0.03081]
[1754120201700,5.72923565,114100.0,114090.0,0.03081]
[1754120203266,5.71551608,114100.0,114090.0,0.03081]
[1754120203910,5.71551608,114100.0,114090.0,0.03379]
[1754120204505,5.35514,114100.0,114090.0,0.03379]
[1754120204716,5.71551608,114100.0,114090.0,0.03577]
[1754120204880,5.35514,114100.0,114090.0,0.03577]
[1754120205084,5.71551608,114100.0,114090.0,0.03577]
[1754120205499,5.68916208,114100.0,114090.0,0.03577]
[1754120205713,5.68916208,114100.0,114090.0,0.39614608]
[1754120205714,5.328786,114100.0,114090.0,0.39614608]
[1754120206157,6.13800805,114100.0,114090.0,0.00204]
[1754120206368,6.13800805,114100.0,114090.0,0.00502]
[1754120206369,5.79971997,114100.0,114090.0,0.00502]
[1754120206580,5.71552008,114100.0,114090.0,0.03379]
[1754120207012,5.71552008,114100.0,114090.0,0.03577]
[1754120207210,5.355144,114100.0,114090.0,0.03577]
[1754120207441,5.72923942,114100.0,114090.0,0.03577]
[1754120209994,5.72923942,114100.0,114090.0,0.03379]
[1754120210219,5.36886334,114100.0,114090.0,0.03081]
[1754120210428,5.72923942,114100.0,114090.0,0.03081]
[1754120212418,0.87197342,114100.0,114090.0,0.03081]
[1754120212627,5.72923942,114100.0,114090.0,0.03379]
[1754120213434,5.71552008,114100.0,114090.0,0.03379]
[1754120213878,5.355144,114100.0,114090.0,0.03379]
[1754120214116,5.71552008,114100.0,114090.0,0.03379]
[1754120214991,5.355144,114100.0,114090.0,0.03379]
[1754120215197,5.71552008,114100.0,114090.0,0.03379]
[1754120216284,5.72923944,114100.0,114090.0,0.03379]
[1754120220477,5.23234336,114100.0,114090.0,0.39623608]
[1754120220698,5.34182536,114100.0,114090.0,0.39623608]
[1754120221553,5.34182536,114100.0,114090.0,0.03586]
[1754120222482,5.70220144,114100.0,114090.0,0.03586]
[1754120222961,5.70284144,114100.0,114090.0,0.03586]
[1754120224536,5.70284144,114100.0,114090.0,0.03379]
[1754120224757,5.70284144,114100.0,114090.0,0.03081]
[1754120224982,6.06321752,114100.0,114090.0,0.03081]
[1754120225639,5.70284144,114100.0,114090.0,0.03081]
[1754120227691,5.70284144,114100.0,114090.0,0.03398]
[1754120227965,0.83185608,114100.0,114090.0,0.03398]
[1754120228163,5.68912208,114100.0,114090.0,0.03398]
[1754120230519,6.84069798,114100.0,114090.0,0.00204]
[1754120230741,6.5066799,114100.0,114090.0,0.00204]
[1754120231633,6.52040023,114100.0,114090.0,0.00204]
[1754120233354,6.5066799,114100.0,114090.0,0.00204]
[1754120234058,5.78592774,114100.0,114090.0,0.00204]
[1754120234310,6.5066799,114100.0,114090.0,0.00204]
[1754120234787,5.78592774,114100.0,114090.0,0.00204]
[1754120235007,6.5066799,114100.0,114090.0,0.00204]
[1754120237612,6.52040027,114100.0,114090.0,0.00204]
[1754120238310,1.66313427,114100.0,114090.0,0.00204]
[1754120238498,6.52040027,114100.0,114090.0,0.00204]
[1754120238714,6.52000027,114100.0,114090.0,0.00204]
[1754120242218,5.79924811,114100.0,114090.0,0.00204]
[1754120242446,6.51651027,114100.0,114090.0,0.00204]
[1754120244156,6.51651027,114100.0,114090.0,0.03205]
[1754120244363,5.62047328,114100.0,114090.0,0.03205]
[1754120244800,6.34122544,114100.0,114090.0,0.03505]